{"text_format":"3","workbook":"xlsx","n_sheets":2,"sheets":["Çalışan Çizelgesi","Kurulum"],"not_rendered":{"defined_names":21},"read":"whole","date_system":"1900"}

{"sheet":"Çalışan Çizelgesi","index":0,"n_rows":296,"n_cols":21,"rows_kept":296,"merged":[[6,1,6,9],[66,1,66,9],[126,1,126,9],[186,1,186,9],[246,1,246,9]]}
["Çalışan Nöbet Çizelgesi"]
[]
[null,"TOPLAM:",null,{"$f":"SUM(4:4)","v":{"v":56,"d":"56.00"}}]
[null,"SAAT:",null,{"$f":"ÇalışanınGünlükSaatToplamı","v":8},8,8,8,8,8,8,{"v":0,"d":"0.00"},{"v":0,"d":"0.00"},{"v":0,"d":"0.00"},{"v":0,"d":"0.00"},{"v":0,"d":"0.00"},{"v":0,"d":"0.00"},{"v":0,"d":"0.00"},{"v":0,"d":"0.00"},{"v":0,"d":"0.00"},{"v":0,"d":"0.00"},{"v":0,"d":"0.00"}]
[null,"ÇALIŞAN:",null,"Akın, Ç","Göktepe, M","Salah, T","Göktepe, M","Akın, G","Cömertoğlu, C","Kol, A"]
[]
[null,"2012-07-16T09:00:00"]
[null,{"$f":"B7","v":41106.375},{"$nulls":5},"Tatil"]
[null,{"$f":"GörüntülenenDönemler","v":":15"},null,"Danışma",{"$nulls":3},"Tatil"]
[null,":30",null,"Danışma",{"$nulls":3},"Tatil"]
[null,":45",null,"Danışma","Yönetici",null,"Müşteri Hizmetleri","Tatil"]
[null,"10:00 AM",null,"Danışma","Yönetici",null,"Müşteri Hizmetleri","Tatil"]
[null,":15",null,"Danışma","Yönetici",null,"Müşteri Hizmetleri","Tatil"]
[null,":30",null,"Danışma","Yönetici",null,"Müşteri Hizmetleri","Tatil","Muhasebe"]
[null,":45",null,"Danışma","Yönetici",null,"Müşteri Hizmetleri","Tatil","Muhasebe","Kapıcı"]
[null,"11:00 AM",null,"Danışma","Yönetici",null,"Müşteri Hizmetleri","Tatil","Muhasebe","Kapıcı"]
[null,":15",null,"Danışma","Yönetici","Rehber","Müşteri Hizmetleri","Tatil","Muhasebe","Kapıcı"]
[null,":30",null,"Danışma","Mola","Rehber","Müşteri Hizmetleri","Tatil","Muhasebe","Kapıcı"]
[null,":45",null,"Öğle yemeği","Yönetici","Rehber","Müşteri Hizmetleri","Tatil","Muhasebe","Kapıcı"]
[null,"12:00 PM",null,"Öğle yemeği","Yönetici","Rehber","Müşteri Hizmetleri","Tatil","Muhasebe","Kapıcı"]
[null,":15",null,"Danışma","Yönetici","Rehber","Müşteri Hizmetleri","Tatil","Mola","Kapıcı"]
[null,":30",null,"Danışma","Yönetici","Mola","Müşteri Hizmetleri","Tatil","Telefonlar","Mola"]
[null,":45",null,"Danışma","Yönetici","Rehber","Müşteri Hizmetleri","Tatil","Telefonlar","Kapıcı"]
[null,"1:00 PM",null,"Danışma","Yönetici","Rehber","Müşteri Hizmetleri","Tatil","Telefonlar","Kapıcı"]
[null,":15",null,"Danışma","Yönetici","Rehber","Öğle yemeği","Tatil","Telefonlar","Kapıcı"]
[null,":30",null,null,"Yönetici","Rehber","Öğle yemeği","Tatil","Telefonlar","Kapıcı"]
[null,":45",null,null,"Yönetici","Rehber","Öğle yemeği","Tatil","Öğle yemeği","Kapıcı"]
[null,"2:00 PM",null,"Kasiyer","Öğle yemeği","Rehber","Öğle yemeği","Tatil","Öğle yemeği","Kapıcı"]
[null,":15",null,"Kasiyer","Öğle yemeği","Rehber","Müşteri Hizmetleri","Tatil","Telefonlar","Kapıcı"]
[null,":30",null,"Kasiyer","Öğle yemeği","Öğle yemeği","Müşteri Hizmetleri","Tatil","Telefonlar","Öğle yemeği"]
[null,":45",null,"Kasiyer","Öğle yemeği","Öğle yemeği","Müşteri Hizmetleri","Tatil","Telefonlar","Öğle yemeği"]
[null,"3:00 PM",null,"Kasiyer","Güvenlik","Öğle yemeği","Müşteri Hizmetleri","Tatil","Telefonlar","Öğle yemeği"]
[null,":15",null,"Kasiyer","Güvenlik","Öğle yemeği","Müşteri Hizmetleri","Tatil","Telefonlar","Öğle yemeği"]
[null,":30",null,"Kasiyer","Güvenlik","Rehber","Müşteri Hizmetleri","Tatil","Telefonlar","Kapat"]
[null,":45",null,"Kasiyer","Güvenlik","Rehber","Müşteri Hizmetleri","Tatil","Telefonlar","Kapat"]
[null,"4:00 PM",null,"Kasiyer","Güvenlik","Rehber","Müşteri Hizmetleri","Tatil","Mola","Kapat"]
[null,":15",null,"Mola","Güvenlik","Rehber","Mola","Tatil","Telefonlar","Kapat"]
[null,":30",null,"Kasiyer","Güvenlik","Rehber","Müşteri Hizmetleri","Tatil","Telefonlar","Kapat"]
[null,":45",null,"Kasiyer","Güvenlik","Rehber","Müşteri Hizmetleri","Tatil","Telefonlar","Kapat"]
[null,"5:00 PM",null,"Kasiyer","Güvenlik","Rehber","Müşteri Hizmetleri",null,"Telefonlar","Kapat"]
[null,":15",null,"Kasiyer","Güvenlik","Rehber","Müşteri Hizmetleri",null,"Telefonlar","Kapat"]
[null,":30",null,"Kasiyer","Güvenlik","Rehber","Müşteri Hizmetleri",null,"Telefonlar","Kapat"]
[null,":45",null,"Kasiyer","Güvenlik","Rehber","Müşteri Hizmetleri",null,"Telefonlar","Kapat"]
[null,"6:00 PM",null,"Kasiyer","Güvenlik","Rehber","Müşteri Hizmetleri",null,"Telefonlar","Kapat"]
[null,":15",null,"Kasiyer","Güvenlik","Rehber","Müşteri Hizmetleri",null,"Telefonlar","Kapat"]
[null,":30",null,null,"Güvenlik","Rehber","Müşteri Hizmetleri",null,"Telefonlar","Kapat"]
[null,":45",null,null,"Güvenlik","Mola","Müşteri Hizmetleri",null,"Telefonlar","Mola"]
[null,"7:00 PM",{"$nulls":3},"Rehber",null,null,"Telefonlar","Kapat"]
[null,":15",{"$nulls":3},"Rehber",null,null,"Telefonlar","Kapat"]
[null,":30",{"$nulls":3},"Rehber",{"$nulls":3},"Kapat"]
[null,":45",{"$nulls":3},"Rehber",{"$nulls":3},"Kapat"]
[null,"8:00 PM",{"$nulls":3},"Rehber",{"$nulls":3},"Kapat"]
[null,":15",{"$nulls":3},"Rehber"]
[null,":30",{"$nulls":3},"Rehber"]
[null,":45"]
[null,"9:00 PM"]
[]
[]
[]
[]
["Çalışan Çizelgesi"]
[]
[null,"TOPLAM:",null,{"$f":"SUM(64:64)","v":{"v":56,"d":"56.00"}}]
[null,"SAAT:",null,{"$f":"ÇalışanınGünlükSaatToplamı","v":8},8,8,8,8,8,8,{"v":0,"d":"0.00"},{"v":0,"d":"0.00"},{"v":0,"d":"0.00"},{"v":0,"d":"0.00"},{"v":0,"d":"0.00"},{"v":0,"d":"0.00"},{"v":0,"d":"0.00"},{"v":0,"d":"0.00"},{"v":0,"d":"0.00"},{"v":0,"d":"0.00"},{"v":0,"d":"0.00"}]
[null,"ÇALIŞAN:",null,"Akın, Ç","Göktepe, M","Salah, T","Hanif, K","Akın, G","Cömertoğlu, C","Kol, A"]
[]
[null,{"$f":"B7+1","v":"2012-07-17T09:00:00"}]
[null,{"$f":"B67","v":41107.375},{"$nulls":5},"Tatil"]
[null,{"$f":"GörüntülenenDönemler","v":":15"},null,"Danışma",{"$nulls":3},"Tatil"]
[null,":30",null,"Danışma",{"$nulls":3},"Tatil"]
[null,":45",null,"Danışma","Yönetici",null,"Müşteri Hizmetleri","Tatil"]
[null,"1:00 AM",null,"Danışma","Yönetici",null,"Müşteri Hizmetleri","Tatil"]
[null,":15",null,"Danışma","Yönetici",null,"Müşteri Hizmetleri","Tatil"]
[null,":30",null,"Danışma","Yönetici",null,"Müşteri Hizmetleri","Tatil","Muhasebe"]
[null,":45",null,"Danışma","Yönetici",null,"Müşteri Hizmetleri","Tatil","Muhasebe","Kapıcı"]
[null,"2:00 AM",null,"Danışma","Yönetici",null,"Müşteri Hizmetleri","Tatil","Muhasebe","Kapıcı"]
[null,":15",null,"Danışma","Yönetici","Rehber","Müşteri Hizmetleri","Tatil","Muhasebe","Kapıcı"]
[null,":30",null,"Danışma","Mola","Rehber","Müşteri Hizmetleri","Tatil","Muhasebe","Kapıcı"]
[null,":45",null,"Öğle yemeği","Yönetici","Rehber","Müşteri Hizmetleri","Tatil","Muhasebe","Kapıcı"]
[null,"3:00 AM",null,"Öğle yemeği","Yönetici","Rehber","Müşteri Hizmetleri","Tatil","Muhasebe","Kapıcı"]
[null,":15",null,"Danışma","Yönetici","Rehber","Müşteri Hizmetleri","Tatil","Mola","Kapıcı"]
[null,":30",null,"Danışma","Yönetici","Mola","Müşteri Hizmetleri","Tatil","Telefonlar","Mola"]
[null,":45",null,"Danışma","Yönetici","Rehber","Müşteri Hizmetleri","Tatil","Telefonlar","Kapıcı"]
[null,"4:00 AM",null,"Danışma","Yönetici","Rehber","Müşteri Hizmetleri","Tatil","Telefonlar","Kapıcı"]
[null,":15",null,"Danışma","Yönetici","Rehber","Öğle yemeği","Tatil","Telefonlar","Kapıcı"]
[null,":30",null,null,"Yönetici","Rehber","Öğle yemeği","Tatil","Telefonlar","Kapıcı"]
[null,":45",null,null,"Yönetici","Rehber","Öğle yemeği","Tatil","Öğle yemeği","Kapıcı"]
[null,"5:00 AM",null,"Kasiyer","Öğle yemeği","Rehber","Öğle yemeği","Tatil","Öğle yemeği","Kapıcı"]
[null,":15",null,"Kasiyer","Öğle yemeği","Rehber","Müşteri Hizmetleri","Tatil","Telefonlar","Kapıcı"]
[null,":30",null,"Kasiyer","Öğle yemeği","Öğle yemeği","Müşteri Hizmetleri","Tatil","Telefonlar","Öğle yemeği"]
[null,":45",null,"Kasiyer","Öğle yemeği","Öğle yemeği","Müşteri Hizmetleri","Tatil","Telefonlar","Öğle yemeği"]
[null,"6:00 AM",null,"Kasiyer","Güvenlik","Öğle yemeği","Müşteri Hizmetleri","Tatil","Telefonlar","Öğle yemeği"]
[null,":15",null,"Kasiyer","Güvenlik","Öğle yemeği","Müşteri Hizmetleri","Tatil","Telefonlar","Öğle yemeği"]
[null,":30",null,"Kasiyer","Güvenlik","Rehber","Müşteri Hizmetleri","Tatil","Telefonlar","Kapat"]
[null,":45",null,"Kasiyer","Güvenlik","Rehber","Müşteri Hizmetleri","Tatil","Telefonlar","Kapat"]
[null,"7:00 AM",null,"Kasiyer","Güvenlik","Rehber","Müşteri Hizmetleri","Tatil","Mola","Kapat"]
[null,":15",null,"Mola","Güvenlik","Rehber","Mola","Tatil","Telefonlar","Kapat"]
[null,":30",null,"Kasiyer","Güvenlik","Rehber","Müşteri Hizmetleri","Tatil","Telefonlar","Kapat"]
[null,":45",null,"Kasiyer","Güvenlik","Rehber","Müşteri Hizmetleri","Tatil","Telefonlar","Kapat"]
[null,"8:00 AM",null,"Kasiyer","Güvenlik","Rehber","Müşteri Hizmetleri",null,"Telefonlar","Kapat"]
[null,":15",null,"Kasiyer","Güvenlik","Rehber","Müşteri Hizmetleri",null,"Telefonlar","Kapat"]
[null,":30",null,"Kasiyer","Güvenlik","Rehber","Müşteri Hizmetleri",null,"Telefonlar","Kapat"]
[null,":45",null,"Kasiyer","Güvenlik","Rehber","Müşteri Hizmetleri",null,"Telefonlar","Kapat"]
[null,"9:00 AM",null,"Kasiyer","Güvenlik","Rehber","Müşteri Hizmetleri",null,"Telefonlar","Kapat"]
[null,":15",null,"Kasiyer","Güvenlik","Rehber","Müşteri Hizmetleri",null,"Telefonlar","Kapat"]
[null,":30",null,null,"Güvenlik","Rehber","Müşteri Hizmetleri",null,"Telefonlar","Kapat"]
[null,":45",null,null,"Güvenlik","Mola","Müşteri Hizmetleri",null,"Telefonlar","Mola"]
[null,"10:00 AM",{"$nulls":3},"Rehber",null,null,"Telefonlar","Kapat"]
[null,":15",{"$nulls":3},"Rehber",null,null,"Telefonlar","Kapat"]
[null,":30",{"$nulls":3},"Rehber",{"$nulls":3},"Kapat"]
[null,":45",{"$nulls":3},"Rehber",{"$nulls":3},"Kapat"]
[null,"11:00 AM",{"$nulls":3},"Rehber",{"$nulls":3},"Kapat"]
[null,":15",{"$nulls":3},"Rehber"]
[null,":30",{"$nulls":3},"Rehber"]
[null,":45"]
[null,"12:00 PM"]
[]
[]
[]
[]
["Çalışan Çizelgesi"]
[]
[null,"TOPLAM:",null,{"$f":"SUM(124:124)","v":{"v":56,"d":"56.00"}}]
[null,"SAAT:",null,{"$f":"ÇalışanınGünlükSaatToplamı","v":8},8,8,8,8,8,8,{"v":0,"d":"0.00"},{"v":0,"d":"0.00"},{"v":0,"d":"0.00"},{"v":0,"d":"0.00"},{"v":0,"d":"0.00"},{"v":0,"d":"0.00"},{"v":0,"d":"0.00"},{"v":0,"d":"0.00"},{"v":0,"d":"0.00"},{"v":0,"d":"0.00"},{"v":0,"d":"0.00"}]
[null,"ÇALIŞAN:",null,"Akın, Ç","Göktepe, M","Salah, T","Hanif, K","Akın, G","Cömertoğlu, C","Kol, A"]
[]
[null,{"$f":"B67+1","v":"2012-07-18T09:00:00"}]
[null,{"$f":"B127","v":41108.375},{"$nulls":5},"Tatil"]
[null,{"$f":"GörüntülenenDönemler","v":":15"},null,"Danışma",{"$nulls":3},"Tatil"]
[null,":30",null,"Danışma",{"$nulls":3},"Tatil"]
[null,":45",null,"Danışma","Yönetici",null,"Müşteri Hizmetleri","Tatil"]
[null,"4:00 PM",null,"Danışma","Yönetici",null,"Müşteri Hizmetleri","Tatil"]
[null,":15",null,"Danışma","Yönetici",null,"Müşteri Hizmetleri","Tatil"]
[null,":30",null,"Danışma","Yönetici",null,"Müşteri Hizmetleri","Tatil","Muhasebe"]
[null,":45",null,"Danışma","Yönetici",null,"Müşteri Hizmetleri","Tatil","Muhasebe","Kapıcı"]
[null,"5:00 PM",null,"Danışma","Yönetici",null,"Müşteri Hizmetleri","Tatil","Muhasebe","Kapıcı"]
[null,":15",null,"Danışma","Yönetici","Rehber","Müşteri Hizmetleri","Tatil","Muhasebe","Kapıcı"]
[null,":30",null,"Danışma","Mola","Rehber","Müşteri Hizmetleri","Tatil","Muhasebe","Kapıcı"]
[null,":45",null,"Öğle yemeği","Yönetici","Rehber","Müşteri Hizmetleri","Tatil","Muhasebe","Kapıcı"]
[null,"6:00 PM",null,"Öğle yemeği","Yönetici","Rehber","Müşteri Hizmetleri","Tatil","Muhasebe","Kapıcı"]
[null,":15",null,"Danışma","Yönetici","Rehber","Müşteri Hizmetleri","Tatil","Mola","Kapıcı"]
[null,":30",null,"Danışma","Yönetici","Mola","Müşteri Hizmetleri","Tatil","Telefonlar","Mola"]
[null,":45",null,"Danışma","Yönetici","Rehber","Müşteri Hizmetleri","Tatil","Telefonlar","Kapıcı"]
[null,"7:00 PM",null,"Danışma","Yönetici","Rehber","Müşteri Hizmetleri","Tatil","Telefonlar","Kapıcı"]
[null,":15",null,"Danışma","Yönetici","Rehber","Öğle yemeği","Tatil","Telefonlar","Kapıcı"]
[null,":30",null,null,"Yönetici","Rehber","Öğle yemeği","Tatil","Telefonlar","Kapıcı"]
[null,":45",null,null,"Yönetici","Rehber","Öğle yemeği","Tatil","Öğle yemeği","Kapıcı"]
[null,"8:00 PM",null,"Kasiyer","Öğle yemeği","Rehber","Öğle yemeği","Tatil","Öğle yemeği","Kapıcı"]
[null,":15",null,"Kasiyer","Öğle yemeği","Rehber","Müşteri Hizmetleri","Tatil","Telefonlar","Kapıcı"]
[null,":30",null,"Kasiyer","Öğle yemeği","Öğle yemeği","Müşteri Hizmetleri","Tatil","Telefonlar","Öğle yemeği"]
[null,":45",null,"Kasiyer","Öğle yemeği","Öğle yemeği","Müşteri Hizmetleri","Tatil","Telefonlar","Öğle yemeği"]
[null,"9:00 PM",null,"Kasiyer","Güvenlik","Öğle yemeği","Müşteri Hizmetleri","Tatil","Telefonlar","Öğle yemeği"]
[null,":15",null,"Kasiyer","Güvenlik","Öğle yemeği","Müşteri Hizmetleri","Tatil","Telefonlar","Öğle yemeği"]
[null,":30",null,"Kasiyer","Güvenlik","Rehber","Müşteri Hizmetleri","Tatil","Telefonlar","Kapat"]
[null,":45",null,"Kasiyer","Güvenlik","Rehber","Müşteri Hizmetleri","Tatil","Telefonlar","Kapat"]
[null,"10:00 PM",null,"Kasiyer","Güvenlik","Rehber","Müşteri Hizmetleri","Tatil","Mola","Kapat"]
[null,":15",null,"Mola","Güvenlik","Rehber","Mola","Tatil","Telefonlar","Kapat"]
[null,":30",null,"Kasiyer","Güvenlik","Rehber","Müşteri Hizmetleri","Tatil","Telefonlar","Kapat"]
[null,":45",null,"Kasiyer","Güvenlik","Rehber","Müşteri Hizmetleri","Tatil","Telefonlar","Kapat"]
[null,"11:00 PM",null,"Kasiyer","Güvenlik","Rehber","Müşteri Hizmetleri",null,"Telefonlar","Kapat"]
[null,":15",null,"Kasiyer","Güvenlik","Rehber","Müşteri Hizmetleri",null,"Telefonlar","Kapat"]
[null,":30",null,"Kasiyer","Güvenlik","Rehber","Müşteri Hizmetleri",null,"Telefonlar","Kapat"]
[null,":45",null,"Kasiyer","Güvenlik","Rehber","Müşteri Hizmetleri",null,"Telefonlar","Kapat"]
[null,"12:00 AM",null,"Kasiyer","Güvenlik","Rehber","Müşteri Hizmetleri",null,"Telefonlar","Kapat"]
[null,":15",null,"Kasiyer","Güvenlik","Rehber","Müşteri Hizmetleri",null,"Telefonlar","Kapat"]
[null,":30",null,null,"Güvenlik","Rehber","Müşteri Hizmetleri",null,"Telefonlar","Kapat"]
[null,":45",null,null,"Güvenlik","Mola","Müşteri Hizmetleri",null,"Telefonlar","Mola"]
[null,"1:00 AM",{"$nulls":3},"Rehber",null,null,"Telefonlar","Kapat"]
[null,":15",{"$nulls":3},"Rehber",null,null,"Telefonlar","Kapat"]
[null,":30",{"$nulls":3},"Rehber",{"$nulls":3},"Kapat"]
[null,":45",{"$nulls":3},"Rehber",{"$nulls":3},"Kapat"]
[null,"2:00 AM",{"$nulls":3},"Rehber",{"$nulls":3},"Kapat"]
[null,":15",{"$nulls":3},"Rehber"]
[null,":30",{"$nulls":3},"Rehber"]
[null,":45"]
[null,"3:00 AM"]
[]
[]
[]
[]
["Çalışan Çizelgesi"]
[]
[null,"TOPLAM:",null,{"$f":"SUM(184:184)","v":{"v":56,"d":"56.00"}}]
[null,"SAAT:",null,{"$f":"ÇalışanınGünlükSaatToplamı","v":8},8,8,8,8,8,8,{"v":0,"d":"0.00"},{"v":0,"d":"0.00"},{"v":0,"d":"0.00"},{"v":0,"d":"0.00"},{"v":0,"d":"0.00"},{"v":0,"d":"0.00"},{"v":0,"d":"0.00"},{"v":0,"d":"0.00"},{"v":0,"d":"0.00"},{"v":0,"d":"0.00"},{"v":0,"d":"0.00"}]
[null,"ÇALIŞAN:",null,"Akın, Ç","Göktepe, M","Salah, T","Hanif, K","Akın, G","Cömertoğlu, C","Kol, A"]
[]
[null,{"$f":"B127+1","v":"2012-07-19T09:00:00"}]
[null,{"$f":"B187","v":41109.375},{"$nulls":5},"Tatil"]
[null,{"$f":"GörüntülenenDönemler","v":":15"},null,"Danışma",{"$nulls":3},"Tatil"]
[null,":30",null,"Danışma",{"$nulls":3},"Tatil"]
[null,":45",null,"Danışma","Yönetici",null,"Müşteri Hizmetleri","Tatil"]
[null,"7:00 AM",null,"Danışma","Yönetici",null,"Müşteri Hizmetleri","Tatil"]
[null,":15",null,"Danışma","Yönetici",null,"Müşteri Hizmetleri","Tatil"]
[null,":30",null,"Danışma","Yönetici",null,"Müşteri Hizmetleri","Tatil","Muhasebe"]
[null,":45",null,"Danışma","Yönetici",null,"Müşteri Hizmetleri","Tatil","Muhasebe","Kapıcı"]
[null,"8:00 AM",null,"Danışma","Yönetici",null,"Müşteri Hizmetleri","Tatil","Muhasebe","Kapıcı"]
[null,":15",null,"Danışma","Yönetici","Rehber","Müşteri Hizmetleri","Tatil","Muhasebe","Kapıcı"]
[null,":30",null,"Danışma","Mola","Rehber","Müşteri Hizmetleri","Tatil","Muhasebe","Kapıcı"]
[null,":45",null,"Öğle yemeği","Yönetici","Rehber","Müşteri Hizmetleri","Tatil","Muhasebe","Kapıcı"]
[null,"9:00 AM",null,"Öğle yemeği","Yönetici","Rehber","Müşteri Hizmetleri","Tatil","Muhasebe","Kapıcı"]
[null,":15",null,"Danışma","Yönetici","Rehber","Müşteri Hizmetleri","Tatil","Mola","Kapıcı"]
[null,":30",null,"Danışma","Yönetici","Mola","Müşteri Hizmetleri","Tatil","Telefonlar","Mola"]
[null,":45",null,"Danışma","Yönetici","Rehber","Müşteri Hizmetleri","Tatil","Telefonlar","Kapıcı"]
[null,"10:00 AM",null,"Danışma","Yönetici","Rehber","Müşteri Hizmetleri","Tatil","Telefonlar","Kapıcı"]
[null,":15",null,"Danışma","Yönetici","Rehber","Öğle yemeği","Tatil","Telefonlar","Kapıcı"]
[null,":30",null,null,"Yönetici","Rehber","Öğle yemeği","Tatil","Telefonlar","Kapıcı"]
[null,":45",null,null,"Yönetici","Rehber","Öğle yemeği","Tatil","Öğle yemeği","Kapıcı"]
[null,"11:00 AM",null,"Kasiyer","Öğle yemeği","Rehber","Öğle yemeği","Tatil","Öğle yemeği","Kapıcı"]
[null,":15",null,"Kasiyer","Öğle yemeği","Rehber","Müşteri Hizmetleri","Tatil","Telefonlar","Kapıcı"]
[null,":30",null,"Kasiyer","Öğle yemeği","Öğle yemeği","Müşteri Hizmetleri","Tatil","Telefonlar","Öğle yemeği"]
[null,":45",null,"Kasiyer","Öğle yemeği","Öğle yemeği","Müşteri Hizmetleri","Tatil","Telefonlar","Öğle yemeği"]
[null,"12:00 PM",null,"Kasiyer","Güvenlik","Öğle yemeği","Müşteri Hizmetleri","Tatil","Telefonlar","Öğle yemeği"]
[null,":15",null,"Kasiyer","Güvenlik","Öğle yemeği","Müşteri Hizmetleri","Tatil","Telefonlar","Öğle yemeği"]
[null,":30",null,"Kasiyer","Güvenlik","Rehber","Müşteri Hizmetleri","Tatil","Telefonlar","Kapat"]
[null,":45",null,"Kasiyer","Güvenlik","Rehber","Müşteri Hizmetleri","Tatil","Telefonlar","Kapat"]
[null,"1:00 PM",null,"Kasiyer","Güvenlik","Rehber","Müşteri Hizmetleri","Tatil","Mola","Kapat"]
[null,":15",null,"Mola","Güvenlik","Rehber","Mola","Tatil","Telefonlar","Kapat"]
[null,":30",null,"Kasiyer","Güvenlik","Rehber","Müşteri Hizmetleri","Tatil","Telefonlar","Kapat"]
[null,":45",null,"Kasiyer","Güvenlik","Rehber","Müşteri Hizmetleri","Tatil","Telefonlar","Kapat"]
[null,"2:00 PM",null,"Kasiyer","Güvenlik","Rehber","Müşteri Hizmetleri",null,"Telefonlar","Kapat"]
[null,":15",null,"Kasiyer","Güvenlik","Rehber","Müşteri Hizmetleri",null,"Telefonlar","Kapat"]
[null,":30",null,"Kasiyer","Güvenlik","Rehber","Müşteri Hizmetleri",null,"Telefonlar","Kapat"]
[null,":45",null,"Kasiyer","Güvenlik","Rehber","Müşteri Hizmetleri",null,"Telefonlar","Kapat"]
[null,"3:00 PM",null,"Kasiyer","Güvenlik","Rehber","Müşteri Hizmetleri",null,"Telefonlar","Kapat"]
[null,":15",null,"Kasiyer","Güvenlik","Rehber","Müşteri Hizmetleri",null,"Telefonlar","Kapat"]
[null,":30",null,null,"Güvenlik","Rehber","Müşteri Hizmetleri",null,"Telefonlar","Kapat"]
[null,":45",null,null,"Güvenlik","Mola","Müşteri Hizmetleri",null,"Telefonlar","Mola"]
[null,"4:00 PM",{"$nulls":3},"Rehber",null,null,"Telefonlar","Kapat"]
[null,":15",{"$nulls":3},"Rehber",null,null,"Telefonlar","Kapat"]
[null,":30",{"$nulls":3},"Rehber",{"$nulls":3},"Kapat"]
[null,":45",{"$nulls":3},"Rehber",{"$nulls":3},"Kapat"]
[null,"5:00 PM",{"$nulls":3},"Rehber",{"$nulls":3},"Kapat"]
[null,":15",{"$nulls":3},"Rehber"]
[null,":30",{"$nulls":3},"Rehber"]
[null,":45"]
[null,"6:00 PM"]
[]
[]
[]
[]
["Çalışan Çizelgesi"]
[]
[null,"TOPLAM:",null,{"$f":"SUM(244:244)","v":{"v":56,"d":"56.00"}}]
[null,"SAAT:",null,{"$f":"ÇalışanınGünlükSaatToplamı","v":8},8,8,8,8,8,8,{"v":0,"d":"0.00"},{"v":0,"d":"0.00"},{"v":0,"d":"0.00"},{"v":0,"d":"0.00"},{"v":0,"d":"0.00"},{"v":0,"d":"0.00"},{"v":0,"d":"0.00"},{"v":0,"d":"0.00"},{"v":0,"d":"0.00"},{"v":0,"d":"0.00"},{"v":0,"d":"0.00"}]
[null,"ÇALIŞAN:",null,"Akın, Ç","Göktepe, M","Salah, T","Hanif, K","Akın, G","Cömertoğlu, C","Kol, A"]
[]
[null,{"$f":"B187+1","v":"2012-07-20T09:00:00"}]
[null,{"$f":"B247","v":41110.375},{"$nulls":5},"Tatil"]
[null,{"$f":"GörüntülenenDönemler","v":":15"},null,"Danışma",{"$nulls":3},"Tatil"]
[null,":30",null,"Danışma",{"$nulls":3},"Tatil"]
[null,":45",null,"Danışma","Yönetici",null,"Müşteri Hizmetleri","Tatil"]
[null,"10:00 PM",null,"Danışma","Yönetici",null,"Müşteri Hizmetleri","Tatil"]
[null,":15",null,"Danışma","Yönetici",null,"Müşteri Hizmetleri","Tatil"]
[null,":30",null,"Danışma","Yönetici",null,"Müşteri Hizmetleri","Tatil","Muhasebe"]
[null,":45",null,"Danışma","Yönetici",null,"Müşteri Hizmetleri","Tatil","Muhasebe","Kapıcı"]
[null,"11:00 PM",null,"Danışma","Yönetici",null,"Müşteri Hizmetleri","Tatil","Muhasebe","Kapıcı"]
[null,":15",null,"Danışma","Yönetici","Rehber","Müşteri Hizmetleri","Tatil","Muhasebe","Kapıcı"]
[null,":30",null,"Danışma","Mola","Rehber","Müşteri Hizmetleri","Tatil","Muhasebe","Kapıcı"]
[null,":45",null,"Öğle yemeği","Yönetici","Rehber","Müşteri Hizmetleri","Tatil","Muhasebe","Kapıcı"]
[null,"12:00 AM",null,"Öğle yemeği","Yönetici","Rehber","Müşteri Hizmetleri","Tatil","Muhasebe","Kapıcı"]
[null,":15",null,"Danışma","Yönetici","Rehber","Müşteri Hizmetleri","Tatil","Mola","Kapıcı"]
[null,":30",null,"Danışma","Yönetici","Mola","Müşteri Hizmetleri","Tatil","Telefonlar","Mola"]
[null,":45",null,"Danışma","Yönetici","Rehber","Müşteri Hizmetleri","Tatil","Telefonlar","Kapıcı"]
[null,"1:00 AM",null,"Danışma","Yönetici","Rehber","Müşteri Hizmetleri","Tatil","Telefonlar","Kapıcı"]
[null,":15",null,"Danışma","Yönetici","Rehber","Öğle yemeği","Tatil","Telefonlar","Kapıcı"]
[null,":30",null,null,"Yönetici","Rehber","Öğle yemeği","Tatil","Telefonlar","Kapıcı"]
[null,":45",null,null,"Yönetici","Rehber","Öğle yemeği","Tatil","Öğle yemeği","Kapıcı"]
[null,"2:00 AM",null,"Kasiyer","Öğle yemeği","Rehber","Öğle yemeği","Tatil","Öğle yemeği","Kapıcı"]
[null,":15",null,"Kasiyer","Öğle yemeği","Rehber","Müşteri Hizmetleri","Tatil","Telefonlar","Kapıcı"]
[null,":30",null,"Kasiyer","Öğle yemeği","Öğle yemeği","Müşteri Hizmetleri","Tatil","Telefonlar","Öğle yemeği"]
[null,":45",null,"Kasiyer","Öğle yemeği","Öğle yemeği","Müşteri Hizmetleri","Tatil","Telefonlar","Öğle yemeği"]
[null,"3:00 AM",null,"Kasiyer","Güvenlik","Öğle yemeği","Müşteri Hizmetleri","Tatil","Telefonlar","Öğle yemeği"]
[null,":15",null,"Kasiyer","Güvenlik","Öğle yemeği","Müşteri Hizmetleri","Tatil","Telefonlar","Öğle yemeği"]
[null,":30",null,"Kasiyer","Güvenlik","Rehber","Müşteri Hizmetleri","Tatil","Telefonlar","Kapat"]
[null,":45",null,"Kasiyer","Güvenlik","Rehber","Müşteri Hizmetleri","Tatil","Telefonlar","Kapat"]
[null,"4:00 AM",null,"Kasiyer","Güvenlik","Rehber","Müşteri Hizmetleri","Tatil","Mola","Kapat"]
[null,":15",null,"Mola","Güvenlik","Rehber","Mola","Tatil","Telefonlar","Kapat"]
[null,":30",null,"Kasiyer","Güvenlik","Rehber","Müşteri Hizmetleri","Tatil","Telefonlar","Kapat"]
[null,":45",null,"Kasiyer","Güvenlik","Rehber","Müşteri Hizmetleri","Tatil","Telefonlar","Kapat"]
[null,"5:00 AM",null,"Kasiyer","Güvenlik","Rehber","Müşteri Hizmetleri",null,"Telefonlar","Kapat"]
[null,":15",null,"Kasiyer","Güvenlik","Rehber","Müşteri Hizmetleri",null,"Telefonlar","Kapat"]
[null,":30",null,"Kasiyer","Güvenlik","Rehber","Müşteri Hizmetleri",null,"Telefonlar","Kapat"]
[null,":45",null,"Kasiyer","Güvenlik","Rehber","Müşteri Hizmetleri",null,"Telefonlar","Kapat"]
[null,"6:00 AM",null,"Kasiyer","Güvenlik","Rehber","Müşteri Hizmetleri",null,"Telefonlar","Kapat"]
[null,":15",null,"Kasiyer","Güvenlik","Rehber","Müşteri Hizmetleri",null,"Telefonlar","Kapat"]
[null,":30",null,null,"Güvenlik","Rehber","Müşteri Hizmetleri",null,"Telefonlar","Kapat"]
[null,":45",null,null,"Güvenlik","Mola","Müşteri Hizmetleri",null,"Telefonlar","Mola"]
[null,"7:00 AM",{"$nulls":3},"Rehber",null,null,"Telefonlar","Kapat"]
[null,":15",{"$nulls":3},"Rehber",null,null,"Telefonlar","Kapat"]
[null,":30",{"$nulls":3},"Rehber",{"$nulls":3},"Kapat"]
[null,":45",{"$nulls":3},"Rehber",{"$nulls":3},"Kapat"]
[null,"8:00 AM",{"$nulls":3},"Rehber",{"$nulls":3},"Kapat"]
[null,":15",{"$nulls":3},"Rehber"]
[null,":30",{"$nulls":3},"Rehber"]
[null,":45"]
[null,"9:00 AM"]

{"sheet":"Kurulum","index":1,"n_rows":26,"n_cols":7,"rows_kept":26}
[null,"Kurulum"]
[]
[]
[null,"SAATLİK GİRİŞ BAŞINA ARTIŞ",4]
[]
[]
[]
[]
[]
[null,"Çalışanlar",null,"Pozisyon/Mesai Dışı Saatler","Renk","Ödendi","Tam Gün"]
[null,"Akın, Ç",null,"Öğle yemeği",1,false,false]
[null,"Akın, G",null,"Mola",1,false,false]
[null,"Cömertoğlu, C",null,"İzinde",1,false,true]
[null,"Ersan, E",null,"Hasta",1,false,true]
[null,"Göktepe, M",null,"Kişisel Gün",1,true,true]
[null,"Hanif, K",null,"Tatil",1,true,true]
[null,"Kol, A",null,"Danışma",2,true,false]
[null,"Salah, T",null,"Kasiyer",3,true,false]
[{"$nulls":3},"Yönetici",4,true,false]
[{"$nulls":3},"Rehber",5,true,false]
[{"$nulls":3},"Müşteri Hizmetleri",6,true,false]
[{"$nulls":3},"Telefonlar",7,true,false]
[{"$nulls":3},"Güvenlik",8,true,false]
[{"$nulls":3},"Kapıcı",9,true,false]
[{"$nulls":3},"Muhasebe",10,true,false]
[{"$nulls":3},"Kapat",11,true,false]